bitfinex/quotes_SOLUSD_20250301
["timestamp","ask_amount","ask_price","bid_price","bid_amount"]
[1740832059316,0.063,140.9,140.89,6.3879]
[1740832062834,80.7,140.94,140.89,22.3578]
[1740832063151,119.723,140.96,140.89,24.3578]
[1740832063324,119.723,140.96,140.89,22.3578]
[1740832067823,80.7,140.95,140.89,22.3578]
[1740832072527,80.7,140.95,140.9,6.0378]
[1740832074547,80.7,140.95,140.91,22.3546]
[1740832077730,80.7,140.95,140.91,6.387]
[1740832078262,99.34964886,140.94,140.89,6.3879]
[1740832078451,80.7,140.93,140.88,22.3883]
[1740832079860,87.12,140.93,140.88,22.3883]
[1740832082657,80.7,140.92,140.88,22.3883]
[1740832083160,80.7,140.92,140.88,6.4184]
[1740832083854,99.34964886,140.91,140.88,0.03]
[1740832084065,80.7,140.9,140.88,0.03]
[1740832085059,18.64964886,140.89,140.88,0.03]
[1740832086169,80.7,140.9,140.88,0.03]
[1740832088775,80.7,140.93,140.9,20.0]
[1740832089169,119.64,140.94,140.91,6.387]
[1740832090780,119.64,140.94,140.91,22.3546]
[1740832091951,0.063,140.96,140.91,22.3546]
[1740832091952,80.763,140.96,140.91,22.3546]
[1740832096972,0.063,140.96,140.92,3.5557]
[1740832097273,0.063,140.96,140.95,6.234]
[1740832098271,0.063,140.96,140.95,12.6192]
[1740832100874,0.0001,140.96,140.95,12.6192]
[1740832103767,0.0001,140.96,140.94,6.3855]
[1740832104559,0.0001,140.96,140.93,6.3861]
[1740832104964,0.0001,140.96,140.92,6.3864]
[1740832105165,80.7,140.95,140.92,6.3864]
[1740832105484,80.7,140.94,140.91,10.8417913]
[1740832105671,80.7,140.93,140.91,10.8417913]
[1740832105868,99.34964886,140.92,140.91,10.8417913]
[1740832106475,80.7,140.91,140.88,0.03]
[1740832106671,25.03754886,140.89,140.88,0.03]
[1740832107767,27.03754886,140.89,140.85,10.8717913]
[1740832107983,18.64964886,140.87,140.85,10.8717913]
[1740832108193,18.64964886,140.87,140.85,0.03]
[1740832112284,80.7,140.86,140.85,0.03]
[1740832112491,18.64964886,140.86,140.85,0.03]
[1740832115982,1.5478,140.9,140.85,0.03]
[1740832116170,6.42,140.9,140.85,0.03]
[1740832116373,18.64964886,140.89,140.85,0.03]
[1740832117098,99.34964886,140.89,140.85,0.03]
[1740832121276,80.7,140.88,140.85,0.03]
[1740832121587,80.7,140.88,140.87,20.0]
[1740832122385,80.7,140.88,140.87,26.3888]
[1740832124796,80.7,140.88,140.85,16.0042]
[1740832124982,80.7,140.88,140.85,22.3939]
[1740832125388,80.763,140.88,140.85,22.3939]
[1740832126474,0.063,140.88,140.87,20.0]
[1740832127798,119.58,140.91,140.87,26.3888]
[1740832128003,119.58,140.91,140.87,42.3609]
[1740832129289,87.12,140.93,140.87,42.3609]
[1740832129996,87.12,140.93,140.87,44.3609]
[1740832130191,80.7,140.93,140.87,44.3609]
[1740832130502,80.7,140.93,140.87,76.3052]
[1740832131301,80.7,140.93,140.87,44.3609]
[1740832132102,80.7,140.93,140.87,26.3888]
[1740832133107,80.7,140.92,140.87,26.3888]
[1740832133399,80.7,140.92,140.87,42.3609]
[1740832133583,80.7,140.92,140.87,44.3609]
[1740832134295,80.7,140.92,140.87,76.3052]
[1740832134686,80.7,140.95,140.87,76.3052]
[1740832136781,80.7,140.95,140.9,3.54355808]
[1740832136992,80.7,140.94,140.9,3.54355808]
[1740832138306,80.7,140.94,140.91,6.387]
[1740832139705,0.063,140.95,140.94,20.0]
[1740832141698,0.063,140.95,140.94,26.3856]
[1740832145103,0.063,140.95,140.94,28.3856]
[1740832145507,0.063,140.95,140.94,31.88589658]
[1740832148418,0.063,140.95,140.94,29.88589658]
[1740832148793,0.063,140.95,140.94,110.88589658]
[1740832151918,0.063,140.95,140.94,20.0]
[1740832152708,0.063,140.95,140.91,6.0526]
[1740832152904,80.763,140.95,140.91,6.387]
[1740832153414,80.763,140.95,140.9,3.54355808]
[1740832153415,80.763,140.95,140.89,6.3879]
[1740832153818,80.763,140.95,140.88,6.4182]
[1740832154017,87.1486,140.95,140.88,0.03]
[1740832155421,99.34964886,140.94,140.88,0.03]
[1740832155921,18.64964886,140.92,140.88,0.03]
[1740832156121,80.7,140.91,140.88,0.03]
[1740832157128,100.89744886,140.9,140.88,0.03]
[1740832157504,99.34964886,140.89,140.88,0.03]
[1740832157723,18.64964886,140.89,140.88,0.03]
[1740832158737,25.03754886,140.89,140.88,0.03]
[1740832160826,18.64964886,140.89,140.88,0.03]
[1740832163228,119.62,140.9,140.88,0.03]
[1740832163417,0.063,140.89,140.88,0.03]
[1740832166225,0.063,140.89,140.88,6.4184]
[1740832175554,0.063,140.89,140.88,0.03]
[1740832181555,20.28334886,140.89,140.88,0.03]
[1740832183353,1.6337,140.89,140.88,0.03]
[1740832183546,0.063,140.89,140.88,0.03]
[1740832192668,0.063,140.89,140.88,20.03]
[1740832195373,0.063,140.89,140.88,0.03]
[1740832199159,0.063,140.89,140.88,20.03]
[1740832200280,0.063,140.89,140.88,26.4184]
[1740832200445,0.0001,140.89,140.88,6.4184]
[1740832200645,0.0001,140.89,140.88,26.4184]
[1740832202980,0.0001,140.89,140.88,6.4184]
[1740832203147,0.0001,140.89,140.88,34.6087]
[1740832203352,0.0001,140.89,140.88,16.117]
[1740832204183,0.0001,140.89,140.88,34.117]
[1740832204353,0.0001,140.89,140.88,36.117]
[1740832207990,0.0001,140.89,140.88,34.117]
[1740832208282,0.0001,140.89,140.88,36.117]
[1740832209557,0.0001,140.89,140.88,38.117]
[1740832212393,0.0001,140.89,140.88,34.117]
[1740832212700,0.0001,140.89,140.88,26.4184]
[1740832214700,0.0001,140.89,140.88,6.4184]
[1740832215671,0.0001,140.89,140.88,0.03]
[1740832216872,0.0001,140.89,140.88,101.67964886]
[1740832217075,0.0001,140.89,140.88,263.20977448]
[1740832217273,0.063,140.95,140.92,22.0]
[1740832217529,0.063,140.95,140.94,20.0]
[1740832217800,0.063,140.95,140.94,26.3856]
[1740832221687,0.0001,140.96,140.94,26.3856]
[1740832221992,0.0001,140.96,140.94,39.80574252]
[1740832222805,0.0001,140.96,140.95,22.64964886]
[1740832222985,0.0001,140.96,140.95,103.64964886]
[1740832223707,0.0001,140.96,140.95,116.43484886]
[1740832224920,0.0001,141.02,141.01,2.0]
[1740832225210,0.0001,141.03,141.02,20.64964886]
[1740832225597,0.063,141.05,141.04,20.0]
[1740832226891,0.063,141.05,141.04,26.3811]
[1740832230208,0.063,141.05,141.04,28.3811]
[1740832230509,0.063,141.06,141.05,2.0]
[1740832231106,0.0001,141.06,141.05,2.0]
[1740832232025,0.0001,141.06,141.05,28.3807]
[1740832232810,0.0001,141.07,141.06,2.0]
[1740832233111,0.0001,141.09,141.08,22.0]
[1740832233303,0.0001,141.09,141.08,103.0]
[1740832233695,0.0001,141.1,141.09,2.0]
[1740832234318,0.0001,141.1,141.09,8.3789]
[1740832236221,0.0001,141.1,141.09,6.3789]
[1740832237807,0.0001,141.1,141.06,6.6233]
[1740832237808,0.0001,141.1,141.04,81.0]
[1740832238026,0.0001,141.1,141.08,20.0]
[1740832238239,0.0001,141.1,141.05,6.3807]
[1740832238924,0.0001,141.1,141.07,3.54050745]
[1740832240736,0.0001,141.1,141.08,6.3793]
[1740832242353,0.0001,141.1,141.05,9.87965225]
[1740832242645,80.7001,141.1,141.05,9.87965225]
[1740832244538,1.5835,141.08,141.05,6.3807]
[1740832245740,1.5835,141.08,141.02,9.87788765]
[1740832246041,80.7,141.07,141.02,9.87788765]
[1740832246832,80.7,141.07,141.02,6.382]
[1740832247236,80.7,141.06,141.05,0.063]
[1740832247439,6.3799,141.07,141.05,0.063]
[1740832248522,18.64964886,141.07,141.05,0.063]
[1740832249038,14.3629,141.08,141.05,0.063]
[1740832249542,18.64964886,141.07,141.05,0.063]
[1740832249733,7.9835,141.08,141.05,0.063]
[1740832250527,1.5835,141.08,141.05,0.063]
[1740832250727,7.9835,141.08,141.05,0.063]
[1740832251641,1.5835,141.08,141.05,0.063]
[1740832251835,80.7,141.07,141.05,0.063]
[1740832252027,119.5,141.09,141.05,0.063]
[1740832252743,80.7001,141.1,141.06,20.0]
[1740832253952,80.7001,141.1,141.07,6.3798]
[1740832259555,80.7001,141.1,141.07,22.3293]
[1740832261350,80.7001,141.1,141.07,6.3798]
[1740832262236,80.7001,141.1,141.05,0.063]
[1740832262435,80.7,141.09,141.05,6.4435]
[1740832263456,80.7,141.09,141.05,0.063]
[1740832263834,100.89594886,141.08,141.05,0.063]
[1740832264557,106.99474886,141.08,141.05,0.063]
[1740832264755,113.37424886,141.08,141.05,0.063]
[1740832265175,117.37424886,141.08,141.05,0.063]
[1740832265339,20.64964886,141.06,140.98,6.3838]
[1740832265544,18.64964886,141.04,140.98,6.3838]
[1740832265938,18.64964886,141.02,140.95,6.3852]
[1740832266259,80.7,141.01,140.95,6.3852]
[1740832266460,6.4,141.0,140.95,6.3852]
[1740832266952,99.34964886,140.99,140.91,6.387]
[1740832267152,80.7,140.98,140.91,6.387]
[1740832268160,18.64964886,140.99,140.91,6.387]
[1740832268161,99.34964886,140.97,140.91,6.387]
[1740832268539,1.5463,140.96,140.91,6.387]
[1740832268760,87.1,140.95,140.91,6.387]
[1740832270163,87.1,140.95,140.9,0.063]
[1740832271977,80.7,140.95,140.92,20.0]
[1740832272644,80.7,140.98,140.92,20.0]
[1740832273042,80.7,140.98,140.93,22.3514]
[1740832273241,80.7,140.97,140.93,22.3514]
[1740832273450,18.64964886,140.96,140.93,6.3861]
[1740832273649,18.64964886,140.94,140.91,6.387]
[1740832273838,25.04964886,140.94,140.91,6.387]
[1740832274459,80.7,140.93,140.9,0.063]
[1740832274658,99.34964886,140.92,140.9,0.063]
[1740832275165,99.34964886,140.92,140.9,6.4503]
[1740832275465,99.34964886,140.92,140.9,0.063]
[1740832276347,80.7,140.91,140.9,0.063]
[1740832276548,18.64964886,140.91,140.9,0.063]
[1740832277368,27.03664886,140.91,140.9,0.063]
[1740832277620,20.0,140.89,140.88,0.03]
[1740832277750,26.4,140.89,140.88,0.03]
[1740832278161,47.04964886,140.89,140.88,0.03]
[1740832278358,20.64964886,140.88,140.87,0.03]
[1740832278547,40.64964886,140.86,140.85,0.03]
[1740832278747,44.17144886,140.86,140.85,0.03]
[1740832279468,50.56074886,140.86,140.85,0.03]
[1740832280448,2.0,140.84,140.81,0.03]
[1740832280653,105.74964886,140.83,140.81,0.03]
[1740832280848,99.34964886,140.82,140.81,0.03]
[1740832281779,101.34964886,140.82,140.81,0.03]
[1740832281979,20.64964886,140.82,140.81,0.03]
[1740832282172,22.64964886,140.82,140.81,0.03]
[1740832282571,29.04074886,140.82,140.81,0.03]
[1740832283871,20.64964886,140.82,140.81,0.03]
[1740832284076,18.64964886,140.82,140.81,0.03]
[1740832284978,20.64964886,140.82,140.81,0.03]
[1740832285184,29.04074886,140.82,140.81,0.03]
[1740832286675,22.64964886,140.82,140.81,0.03]
[1740832287064,29.04074886,140.82,140.81,0.03]
[1740832287379,24.0,140.79,140.78,0.03]
[1740832287780,44.17994886,140.79,140.78,0.03]
[1740832288366,4.0,140.77,140.76,0.063]
[1740832288564,29.04964886,140.77,140.76,0.063]
[1740832288767,35.44304886,140.77,140.76,0.063]
[1740832289288,25.04964886,140.77,140.76,0.063]
[1740832289678,27.04964886,140.77,140.76,0.063]
[1740832289876,25.04964886,140.77,140.76,0.063]
[1740832290077,33.44304886,140.77,140.76,0.063]
[1740832290490,35.44304886,140.77,140.76,0.063]
[1740832290676,27.04964886,140.77,140.76,0.063]
[1740832290876,25.04964886,140.77,140.76,0.063]
[1740832291473,18.64964886,140.77,140.76,0.063]
[1740832291679,25.06964886,140.77,140.76,0.063]
[1740832294769,6.42,140.77,140.76,0.063]
[1740832295000,121.1503,140.84,140.76,0.063]
[1740832295293,18.64964886,140.82,140.76,0.063]
[1740832296369,18.64964886,140.82,140.76,22.4414]
[1740832296889,0.03,140.78,140.76,22.4414]
[1740832297065,0.03,140.78,140.76,23.9473]
[1740832297470,80.7,140.77,140.76,6.4568]
[1740832297690,80.7,140.77,140.76,0.063]
[1740832298096,6.45,140.78,140.76,0.063]
[1740832298097,0.03,140.78,140.76,0.063]
[1740832298304,0.03,140.78,140.77,26.3934]
[1740832298985,80.7,140.85,140.77,42.3769]
[1740832299185,80.7,140.85,140.78,2.0]
[1740832299711,80.7,140.85,140.77,42.3769]
[1740832300074,80.7,140.85,140.77,44.3769]
[1740832300275,80.7,140.85,140.78,2.0]
[1740832301405,80.7,140.85,140.82,20.0]
[1740832301577,80.7,140.85,140.79,6.3924]
[1740832301776,80.7,140.84,140.79,6.3924]
[1740832301995,87.12,140.84,140.79,6.3924]
[1740832303308,18.64964886,140.82,140.77,6.3934]
[1740832303512,80.7,140.81,140.77,6.3934]
[1740832304170,80.7,140.81,140.8,20.0]
[1740832304408,80.7,140.83,140.8,20.0]
[1740832305475,80.7,140.83,140.79,6.3924]
[1740832306394,6.42,140.84,140.79,22.3736]
[1740832307575,6.42,140.84,140.79,6.3924]
[1740832307776,80.7,140.83,140.79,6.3924]
[1740832307977,80.7,140.83,140.79,22.3736]
[1740832308379,200.46,140.86,140.82,20.0]
[1740832308584,200.46,140.86,140.82,26.436]
[1740832309898,200.46,140.86,140.83,6.3906]
[1740832310790,200.46,140.86,140.82,12.8269]
[1740832314701,200.46,140.86,140.82,28.8047]
[1740832315202,119.76,140.86,140.85,20.0]
[1740832315384,87.13,140.89,140.85,20.0]
[1740832315914,80.73,140.89,140.85,20.0]
[1740832316579,80.73,140.89,140.86,22.3626]
[1740832319796,80.73,140.89,140.86,6.3893]
[1740832320109,0.03,140.87,140.86,6.3893]
[1740832321005,0.03,140.87,140.83,15.9758]
[1740832321305,80.7,140.86,140.83,6.3906]
[1740832321486,80.7,140.85,140.83,6.3906]
[1740832322396,80.7,140.85,140.81,6.3915]
[1740832322992,80.7,140.84,140.8,15.9792]
[1740832323194,80.7,140.84,140.8,22.3712]
[1740832323994,80.7,140.84,140.83,20.0]
[1740832324195,87.13,140.87,140.83,20.0]
[1740832324801,6.43,140.87,140.83,20.0]
[1740832325000,0.03,140.87,140.83,20.0]
[1740832325215,0.03,140.87,140.86,20.0]
[1740832327200,0.03,140.87,140.86,26.3893]
[1740832328001,0.03,140.87,140.86,33.0014]
[1740832329319,0.0001,140.89,140.86,133.9747]
[1740832329512,0.0001,140.89,140.87,1.6056]
[1740832330220,0.0001,140.89,140.88,2.0]
[1740832330922,0.0001,140.89,140.88,20.0]
[1740832331223,0.0001,140.89,140.88,6.3884]
[1740832332023,0.0001,140.89,140.88,8.3884]
[1740832332318,0.0001,140.89,140.88,10.3884]
[1740832333215,80.7,140.95,140.94,20.0]
[1740832333419,0.03,140.96,140.95,20.0]
[1740832335311,0.03,140.96,140.95,26.3852]
[1740832339833,0.0001,140.96,140.95,26.3852]
[1740832340811,0.0001,140.96,140.95,109.3852]
[1740832341237,0.0001,140.96,140.95,111.3852]
[1740832341439,0.0001,140.96,140.95,117.6092]
[1740832341644,0.0001,140.96,140.95,136.25884886]
[1740832342827,0.0001,140.96,140.95,134.25884886]
[1740832343018,0.0001,140.96,140.95,132.25884886]
[1740832343413,0.0001,140.96,140.95,115.6092]
[1740832343819,0.03,141.01,140.95,131.5723]
[1740832345341,80.73,141.01,140.95,42.3483]
[1740832348136,6.4,141.0,140.95,42.3483]
[1740832348343,6.4,141.0,140.95,26.3852]
[1740832349145,80.7,140.99,140.95,26.3852]
[1740832349347,80.7,140.99,140.95,6.3852]
[1740832350147,80.7,140.99,140.92,19.54446019]
[1740832350342,80.7,140.98,140.93,6.3861]
[1740832352146,80.7,140.97,140.93,6.3861]
[1740832352353,80.7,140.96,140.93,6.3861]
[1740832352732,87.1,140.95,140.9,6.3875]
[1740832354244,87.1,140.95,140.88,22.4221]
[1740832355633,87.1,140.95,140.9,0.063]
[1740832356126,87.1,140.95,140.91,20.0]
[1740832357450,0.03,140.96,140.92,20.0]
[1740832357633,0.03,140.96,140.93,20.0]
[1740832358457,0.03,140.96,140.94,6.3856]
[1740832362961,80.7,141.0,140.97,20.0]
[1740832363434,0.03,141.01,140.97,20.0]
[1740832363832,0.03,141.01,141.0,20.0]
[1740832365040,0.03,141.01,141.0,26.3829]
[1740832371641,0.0001,141.1,141.07,20.0]
[1740832371951,1.6501,141.19,141.15,20.0]
[1740832372162,119.56,141.2,141.15,20.0]
[1740832372462,0.0001,141.16,141.15,20.0]
[1740832374545,0.0001,141.16,141.14,20.0]
[1740832378175,0.0001,141.16,141.15,6.3761]
[1740832378546,0.0001,141.16,141.14,26.3765]
[1740832378749,0.0001,141.16,141.14,20.0]
[1740832378947,18.64964886,141.17,141.11,6.378]
[1740832379254,80.7,141.16,141.11,6.378]
[1740832379745,80.73,141.16,141.11,6.378]
[1740832380155,80.73,141.16,141.13,20.0]
[1740832380363,80.73,141.16,141.1,6.3784]
[1740832380548,0.03,141.16,141.1,22.3245]
[1740832382065,0.03,141.16,141.1,6.3784]
[1740832383350,87.1,141.15,141.1,6.3784]
[1740832384146,87.1,141.15,141.11,20.0]
[1740832384356,87.1,141.15,141.09,22.3261]
[1740832384763,87.1,141.15,141.09,6.3789]
[1740832384957,18.64964886,141.14,141.09,6.3789]
[1740832385165,80.7,141.13,141.09,6.3789]
[1740832386370,99.34964886,141.12,141.07,6.3798]
[1740832386555,80.7,141.11,141.07,6.3798]
[1740832386761,80.7,141.11,141.05,6.3807]
[1740832387273,6.4,141.1,141.05,6.3807]
[1740832388477,80.7,141.09,141.05,6.3807]
[1740832388866,100.88404886,141.08,141.01,6.3825]
[1740832389077,80.7,141.07,141.01,6.3825]
[1740832389265,20.18404886,141.08,141.01,6.3825]
[1740832389266,99.34964886,141.06,141.01,6.3825]
[1740832389478,80.7,141.05,141.01,6.3825]
[1740832389975,80.7,141.05,141.0,22.3393]
[1740832390188,80.7,141.05,141.0,24.3393]
[1740832390558,80.7,141.05,141.0,22.3393]
[1740832390775,80.7,141.05,141.0,24.3393]
[1740832390966,80.7,141.09,141.03,22.0]
[1740832391159,80.7,141.11,141.04,2.0]
[1740832391671,80.7,141.11,141.05,2.0]
[1740832392773,80.7,141.11,141.06,22.3308]
[1740832394353,18.64964886,141.1,141.06,22.3308]
[1740832394573,18.64964886,141.1,141.06,15.9506]
[1740832395157,80.7,141.09,141.06,15.9506]
[1740832397966,7.9344,141.12,141.06,15.9506]
[1740832398196,6.4,141.12,141.06,15.9506]
[1740832398565,80.7,141.13,141.09,20.0]
[1740832398892,80.7,141.15,141.09,20.0]
[1740832399064,80.7,141.15,141.1,22.3245]
[1740832404867,80.7,141.15,141.1,28.8723]
[1740832405085,80.7,141.15,141.13,20.0]
[1740832405271,0.03,141.16,141.13,20.0]
[1740832405893,0.03,141.16,141.14,6.3766]
[1740832406377,80.7,141.17,141.14,22.3182]
[1740832409298,80.7,141.19,141.14,22.3182]
[1740832411179,80.7,141.19,141.14,6.3766]
[1740832412591,18.64964886,141.18,141.14,6.3766]
[1740832412782,18.64964886,141.18,141.11,6.378]
[1740832412982,80.7,141.17,141.11,22.323]
[1740832413185,6.38,141.16,141.11,22.323]
[1740832414277,6.38,141.16,141.11,15.945]
[1740832421201,99.34964886,141.15,141.1,6.3784]
[1740832421382,80.7,141.14,141.1,6.3784]
[1740832421985,99.34964886,141.13,141.08,6.3793]
[1740832422901,99.34964886,141.13,141.06,22.3927]
[1740832423102,80.7,141.13,141.06,57.90793205]
[1740832423398,80.7,141.13,141.09,20.0]
[1740832424998,80.7,141.13,141.1,6.3784]
[1740832427117,80.7,141.12,141.09,0.063]
[1740832430222,80.7,141.11,141.09,0.063]
[1740832440606,80.7,141.1,141.09,0.063]
[1740832440835,18.64964886,141.1,141.09,0.063]
[1740832443221,6.38,141.11,141.09,0.063]
[1740832445613,18.64964886,141.14,141.09,0.063]
[1740832445821,6.38,141.13,141.09,0.063]
[1740832451035,80.7,141.12,141.09,0.063]
[1740832455039,80.7,141.15,141.13,20.0]
[1740832455224,0.0001,141.18,141.17,4.0]
[1740832455419,0.063,141.21,141.17,22.0]
[1740832455613,0.063,141.21,141.17,6.42279926]
[1740832455918,0.063,141.21,141.14,28.1314]
[1740832456119,0.063,141.21,141.14,8.1314]
[1740832456532,0.063,141.21,141.15,20.0]
[1740832457133,0.063,141.21,141.16,22.315]
[1740832460546,27.43855141,141.2,141.16,6.3757]
[1740832461134,18.64964886,141.19,141.16,6.3757]
[1740832461352,6.46,141.18,141.16,6.3757]
[1740832461529,27.43855141,141.17,141.13,15.9419]
[1740832461733,27.43855141,141.16,141.14,6.3766]
[1740832462248,27.43855141,141.15,141.11,6.378]
[1740832463127,27.43855141,141.15,141.11,22.323]
[1740832463829,5.141e-05,141.15,141.11,22.323]
[1740832464559,5.141e-05,141.2,141.14,20.0]
[1740832464732,5.141e-05,141.2,141.15,20.0]
[1740832465657,5.141e-05,141.2,141.16,22.315]
[1740832468058,0.063,141.21,141.16,22.315]
[1740832468927,5.141e-05,141.2,141.13,15.9418]
[1740832469129,5.141e-05,141.2,141.14,6.3766]
[1740832469348,5.141e-05,141.19,141.14,6.3766]
[1740832470159,5.141e-05,141.19,141.13,15.9418]
[1740832472174,0.06305141,141.21,141.16,20.0]
[1740832474145,0.06305141,141.21,141.17,22.3134]
[1740832481447,0.063,141.21,141.17,22.3134]
[1740832481672,0.063,141.21,141.17,28.8326]
[1740832482684,0.063,141.21,141.2,26.3739]
[1740832483254,0.03,141.24,141.2,42.3087]
[1740832484075,0.03,141.24,141.2,43.841]
[1740832484279,0.03,141.24,141.2,124.841]
[1740832484668,0.0001,141.25,141.2,156.7106]
[1740832484882,0.0001,141.25,141.2,158.7106]
[1740832485060,0.0001,141.25,141.2,160.7106]
[1740832485374,0.0001,141.25,141.24,20.0]
[1740832485583,0.0001,141.25,141.24,101.0]
[1740832486859,0.0001,141.25,141.24,107.3721]
[1740832489578,0.0001,141.25,141.24,26.3721]
[1740832490460,0.0001,141.25,141.24,47.02174886]
[1740832490658,0.03005141,141.31,141.24,94.81264886]
[1740832490865,0.03,141.31,141.24,175.81264886]
[1740832491195,0.03,141.31,141.24,179.30712382]
[1740832491859,0.0001,141.31,141.28,20.0]
[1740832492263,0.0001,141.31,141.28,101.0]
[1740832493199,0.0001,141.31,141.29,6.3698]
[1740832494975,118.94015141,141.36,141.29,22.2944]
[1740832495479,118.94015141,141.36,141.32,20.0]
[1740832495686,6.38,141.38,141.3,84.48447416]
[1740832496183,82.3836,141.39,141.31,6.4851]
[1740832496365,0.03,141.39,141.34,20.0]
[1740832497485,0.03,141.39,141.35,22.285]
[1740832499173,0.03,141.37,141.35,22.285]
[1740832500565,0.03,141.39,141.36,25.87663152]
[1740832500764,0.03,141.39,141.38,20.0]
[1740832501283,0.03,141.39,141.36,6.3667]
[1740832501476,80.7,141.38,141.34,6.3676]
[1740832501662,0.03,141.39,141.34,6.3676]
[1740832501866,0.03,141.39,141.35,20.0]
[1740832502089,0.03,141.39,141.34,6.3676]
[1740832502589,18.64964886,141.38,141.33,6.368]
[1740832503085,18.64964886,141.36,141.29,3.51701223]
[1740832503291,80.7,141.35,141.29,3.51701223]
[1740832503475,87.12,141.35,141.29,3.51701223]
[1740832504477,6.43,141.39,141.32,20.0]
[1740832504676,87.13,141.39,141.33,6.368]
[1740832506869,18.64964886,141.38,141.33,6.368]
[1740832507079,80.7,141.37,141.33,6.368]
[1740832507477,80.7,141.36,141.33,6.368]
[1740832508197,80.7,141.36,141.3,6.3694]
[1740832508572,0.03,141.39,141.34,26.3951]
[1740832508890,0.03,141.39,141.34,245.3951]
[1740832510593,0.03,141.39,141.35,22.285]
[1740832510797,0.03,141.39,141.35,103.285]
[1740832511182,0.03,141.39,141.35,106.79232897]
[1740832512494,0.03,141.39,141.35,22.285]
[1740832513189,80.7,141.47,141.36,18.64964886]
[1740832513375,80.7,141.46,141.36,237.64964886]
[1740832513900,80.7,141.46,141.37,22.2818]
[1740832514191,99.34964886,141.45,141.37,22.2818]
[1740832514393,18.64964886,141.43,141.37,22.2818]
[1740832514595,80.7,141.42,141.37,22.2818]
[1740832514780,80.7,141.42,141.37,6.3662]
[1740832515495,20.19084886,141.41,141.35,6.3671]
[1740832516178,80.7,141.4,141.35,6.3671]
[1740832517699,80.7,141.4,141.34,20.0]
[1740832517903,80.7,141.4,141.36,20.0]
[1740832518193,6.46,141.39,141.33,6.431]
[1740832518695,80.7,141.38,141.33,6.431]
[1740832518896,80.7,141.38,141.33,0.063]
[1740832519392,18.64964886,141.37,141.33,0.063]
[1740832519584,80.7,141.36,141.33,0.063]
[1740832522380,80.7,141.35,141.33,0.063]
[1740832522999,87.14,141.34,141.33,0.063]
[1740832523187,105.78964886,141.34,141.33,0.063]
[1740832523400,26.70884886,141.34,141.33,0.063]
[1740832523901,28.70884886,141.34,141.33,0.063]
[1740832524383,35.07644886,141.34,141.33,0.063]
[1740832524584,28.70884886,141.34,141.33,0.063]
[1740832525483,20.64964886,141.33,141.25,6.3716]
[1740832525698,152.33644886,141.34,141.25,6.3716]
[1740832525699,18.64964886,141.31,141.25,6.3716]
[1740832526600,18.64964886,141.31,141.24,6.4351]